[Event "*** Titled Tuesday Blitz"]
[Site "Chess.com"]
[Date "2020.11.03"]
[Round "5"]
[White "Heineccius"]
[Black "ErikRonka"]
[Result "1-0"]
[WhiteElo "2543"]
[BlackElo "2375"]
[TimeControl "180+1"]
[EndTime "10:59:43 PST"]
[Termination "Heineccius won by resignation"]

1. d4 {[%clk 0:03:00.9]} 1... d5 {[%clk 0:02:59]} 2. c4 {[%clk 0:02:59.8]} 2...
c6 {[%clk 0:02:59]} 3. Nf3 {[%clk 0:02:58.7]} 3... Nf6 {[%clk 0:02:59.5]} 4. e3
{[%clk 0:02:57.1]} 4... e6 {[%clk 0:02:58.5]} 5. b3 {[%clk 0:02:56.7]} 5... Nbd7
{[%clk 0:02:59]} 6. Bd3 {[%clk 0:02:54.2]} 6... Bd6 {[%clk 0:02:59.4]} 7. Bb2
{[%clk 0:02:53.2]} 7... b6 {[%clk 0:02:59.4]} 8. O-O {[%clk 0:02:52.3]} 8... Bb7
{[%clk 0:02:59.8]} 9. Qc2 {[%clk 0:02:44.2]} 9... O-O {[%clk 0:02:58.4]} 10. Nc3
{[%clk 0:02:43.3]} 10... c5 {[%clk 0:02:57.2]} 11. cxd5 {[%clk 0:02:35.6]} 11...
exd5 {[%clk 0:02:56.4]} 12. Rad1 {[%clk 0:02:33.5]} 12... Rc8 {[%clk 0:02:52.7]}
13. Qe2 {[%clk 0:02:26.4]} 13... Qe7 {[%clk 0:02:04.2]} 14. dxc5 {[%clk
0:02:03.9]} 14... bxc5 {[%clk 0:01:34.2]} 15. Ba6 {[%clk 0:02:03.5]} 15... Nb6
{[%clk 0:01:30.6]} 16. Bxb7 {[%clk 0:01:59.5]} 16... Qxb7 {[%clk 0:01:31.5]} 17.
Nb5 {[%clk 0:01:40.2]} 17... Be7 {[%clk 0:01:26.9]} 18. Bxf6 {[%clk 0:01:38.5]}
18... Bxf6 {[%clk 0:01:19.1]} 19. Nd6 {[%clk 0:01:37.6]} 19... Qc6 {[%clk
0:01:19.6]} 20. Nxc8 {[%clk 0:01:37]} 20... Rxc8 {[%clk 0:01:20.5]} 21. Rc1
{[%clk 0:01:27.6]} 21... a5 {[%clk 0:01:12.3]} 22. Rfd1 {[%clk 0:01:19.6]} 22...
c4 {[%clk 0:01:00.8]} 23. Nd4 {[%clk 0:01:07.8]} 23... Qc5 {[%clk 0:00:59.7]}
24. bxc4 {[%clk 0:01:03.7]} 24... dxc4 {[%clk 0:01:00.6]} 25. Rc2 {[%clk
0:00:52.1]} 25... g6 {[%clk 0:01:00.2]} 26. Qf3 {[%clk 0:00:48.2]} 26... Bg7
{[%clk 0:00:56.9]} 27. Rb1 {[%clk 0:00:34.9]} 27... Nd7 {[%clk 0:00:49.1]} 28.
Rb5 {[%clk 0:00:24.3]} 28... Qa3 {[%clk 0:00:46.8]} 29. h3 {[%clk 0:00:21.2]}
29... Ne5 {[%clk 0:00:46.2]} 30. Qb7 {[%clk 0:00:20]} 30... Rf8 {[%clk
0:00:42.2]} 31. Rb1 {[%clk 0:00:18.1]} 31... Qa4 {[%clk 0:00:29.1]} 32. Qb5
{[%clk 0:00:16.4]} 32... Qa3 {[%clk 0:00:28.9]} 33. Qb2 {[%clk 0:00:15.2]} 33...
Qe7 {[%clk 0:00:26.5]} 34. Qc3 {[%clk 0:00:13]} 34... Qg5 {[%clk 0:00:23.7]} 35.
f4 {[%clk 0:00:10.9]} 35... Nf3+ {[%clk 0:00:19.2]} 36. Nxf3 {[%clk 0:00:11.3]}
36... Qc5 {[%clk 0:00:15.3]} 37. Qxc4 {[%clk 0:00:09.3]} 37... Qxe3+ {[%clk
0:00:15.9]} 38. Kh1 {[%clk 0:00:09.4]} 38... h5 {[%clk 0:00:15.5]} 39. Qe2
{[%clk 0:00:08.9]} 39... Qa7 {[%clk 0:00:15]} 40. Rc4 {[%clk 0:00:09]} 40... Qa8
{[%clk 0:00:14.4]} 41. Rbc1 {[%clk 0:00:09.1]} 41... h4 {[%clk 0:00:14.5]} 42.
Qc2 {[%clk 0:00:09.2]} 42... Qb8 {[%clk 0:00:12.4]} 43. Rc8 {[%clk 0:00:09.6]}
43... Qxf4 {[%clk 0:00:13]} 44. Rxf8+ {[%clk 0:00:08.6]} 44... Bxf8 {[%clk
0:00:13.9]} 45. Rf1 {[%clk 0:00:07.9]} 45... Bd6 {[%clk 0:00:13.2]} 46. Qc8+
{[%clk 0:00:07.7]} 46... Kg7 {[%clk 0:00:12.7]} 47. Qg4 {[%clk 0:00:08.2]} 47...
Qe3 {[%clk 0:00:11.4]} 48. Qd4+ {[%clk 0:00:08.1]} 48... Qxd4 {[%clk 0:00:10.5]}
49. Nxd4 {[%clk 0:00:09]} 49... Be5 {[%clk 0:00:11.1]} 50. Nb5 {[%clk
0:00:09.4]} 50... f5 {[%clk 0:00:10]} 51. Rd1 {[%clk 0:00:10.3]} 51... Kf6
{[%clk 0:00:10.1]} 52. Rd5 {[%clk 0:00:10.9]} 52... g5 {[%clk 0:00:09.7]} 53.
Na7 {[%clk 0:00:10.8]} 53... Ke6 {[%clk 0:00:10.1]} 54. Rxa5 {[%clk 0:00:10.5]}
54... g4 {[%clk 0:00:10.4]} 55. Ra6+ {[%clk 0:00:11.4]} 55... Kd5 {[%clk
0:00:10.6]} 56. Nc6 {[%clk 0:00:11.9]} 56... Bg3 {[%clk 0:00:09.8]} 57. Ne7+
{[%clk 0:00:10.3]} 57... Ke5 {[%clk 0:00:09.4]} 58. Ra5+ {[%clk 0:00:10.1]}
58... Ke4 {[%clk 0:00:09.8]} 59. Nxf5 {[%clk 0:00:10.6]} 59... gxh3 {[%clk
0:00:09.3]} 60. Nxg3+ {[%clk 0:00:10.5]} 1-0

[Event "*** Titled Tuesday Blitz"]
[Site "Chess.com"]
[Date "2020.11.03"]
[Round "5"]
[White "Ashedu66"]
[Black "PlotnikovPavel"]
[Result "0-1"]
[WhiteElo "2237"]
[BlackElo "2453"]
[TimeControl "180+1"]
[EndTime "10:59:43 PST"]
[Termination "PlotnikovPavel won on time"]

1. d4 {[%clk 0:03:00.9]} 1... Nf6 {[%clk 0:02:59.6]} 2. Nf3 {[%clk 0:03:00.8]}
2... g6 {[%clk 0:02:59.2]} 3. c4 {[%clk 0:03:00.8]} 3... Bg7 {[%clk 0:02:59]} 4.
Nc3 {[%clk 0:03:00.8]} 4... d6 {[%clk 0:02:59.2]} 5. e4 {[%clk 0:03:01]} 5...
O-O {[%clk 0:02:59.4]} 6. h3 {[%clk 0:03:01.2]} 6... e5 {[%clk 0:02:59.1]} 7. d5
{[%clk 0:03:01]} 7... Na6 {[%clk 0:02:56.2]} 8. Bg5 {[%clk 0:03:00.5]} 8... h6
{[%clk 0:02:54.8]} 9. Be3 {[%clk 0:03:00.1]} 9... Nc5 {[%clk 0:02:45.9]} 10. Nd2
{[%clk 0:02:59.8]} 10... a5 {[%clk 0:02:45.2]} 11. a3 {[%clk 0:02:59.8]} 11...
Bd7 {[%clk 0:02:36.7]} 12. b4 {[%clk 0:02:58.3]} 12... Na6 {[%clk 0:02:19]} 13.
Rb1 {[%clk 0:02:49.3]} 13... b6 {[%clk 0:02:14.4]} 14. Be2 {[%clk 0:02:36.1]}
14... Ne8 {[%clk 0:02:10.4]} 15. O-O {[%clk 0:02:31.4]} 15... f5 {[%clk
0:02:09.4]} 16. f3 {[%clk 0:02:29.6]} 16... f4 {[%clk 0:02:09.7]} 17. Bf2 {[%clk
0:02:29.9]} 17... h5 {[%clk 0:02:10.3]} 18. c5 {[%clk 0:02:06.9]} 18... bxc5
{[%clk 0:01:54.7]} 19. Bxa6 {[%clk 0:01:48.5]} 19... cxb4 {[%clk 0:01:38.8]} 20.
Be2 {[%clk 0:01:32.9]} 20... bxc3 {[%clk 0:01:37.6]} 21. Nc4 {[%clk 0:01:32.6]}
21... Qg5 {[%clk 0:01:30.4]} 22. Kh2 {[%clk 0:01:29.4]} 22... Qh6 {[%clk
0:01:23.9]} 23. Rb3 {[%clk 0:01:12.9]} 23... g5 {[%clk 0:01:08.5]} 24. Rxc3
{[%clk 0:01:11.4]} 24... Nf6 {[%clk 0:01:05.6]} 25. Kg1 {[%clk 0:01:07.4]} 25...
Qg6 {[%clk 0:00:56.3]} 26. g4 {[%clk 0:00:55.6]} 26... fxg3 {[%clk 0:00:49.3]}
27. Bxg3 {[%clk 0:00:54.3]} 27... Bxh3 {[%clk 0:00:49.1]} 28. Rf2 {[%clk
0:00:52.4]} 28... h4 {[%clk 0:00:47.9]} 29. Bh2 {[%clk 0:00:50.8]} 29... g4
{[%clk 0:00:44.7]} 30. fxg4 {[%clk 0:00:33.4]} 30... Nxg4 {[%clk 0:00:42.7]} 31.
Bxg4 {[%clk 0:00:19.8]} 31... Bxg4 {[%clk 0:00:08.4]} 32. Rg2 {[%clk 0:00:17.4]}
32... Bxd1 {[%clk 0:00:06.2]} 33. Rxg6 {[%clk 0:00:17.3]} 33... Kh7 {[%clk
0:00:06.3]} 34. Rg2 {[%clk 0:00:15.3]} 34... Rg8 {[%clk 0:00:06.2]} 35. Kh1
{[%clk 0:00:12.7]} 35... Bf6 {[%clk 0:00:06]} 36. Rxg8 {[%clk 0:00:12.4]} 36...
Rxg8 {[%clk 0:00:05.8]} 37. Bg1 {[%clk 0:00:12.4]} 37... Be2 {[%clk 0:00:05.8]}
38. Nd2 {[%clk 0:00:11.3]} 38... Bg4 {[%clk 0:00:04.3]} 39. Rxc7+ {[%clk
0:00:09.2]} 39... Rg7 {[%clk 0:00:05]} 40. Rxg7+ {[%clk 0:00:09]} 40... Bxg7
{[%clk 0:00:05.5]} 41. Kg2 {[%clk 0:00:07.2]} 41... Bf8 {[%clk 0:00:05.6]} 42.
Nc4 {[%clk 0:00:06.9]} 42... Bd7 {[%clk 0:00:04.9]} 43. Nxa5 {[%clk 0:00:05.2]}
43... Ba4 {[%clk 0:00:04.4]} 44. Nc4 {[%clk 0:00:03.6]} 44... Bc2 {[%clk
0:00:04.4]} 45. Nd2 {[%clk 0:00:03.7]} 45... Bd3 {[%clk 0:00:04.3]} 46. Be3
{[%clk 0:00:03.4]} 46... Be7 {[%clk 0:00:04.3]} 47. Kh3 {[%clk 0:00:03.6]} 47...
Kg6 {[%clk 0:00:04.3]} 48. Bf2 {[%clk 0:00:02.5]} 48... Kh5 {[%clk 0:00:04.3]}
49. a4 {[%clk 0:00:01.8]} 49... Ba6 {[%clk 0:00:04.3]} 50. a5 {[%clk 0:00:01.8]}
50... Bd3 {[%clk 0:00:04.2]} 51. Be1 {[%clk 0:00:01.4]} 51... Bg5 {[%clk
0:00:03.8]} 52. Bf2 {[%clk 0:00:01.3]} 52... Bxd2 {[%clk 0:00:03.3]} 0-1

[Event "*** Titled Tuesday Blitz"]
[Site "Chess.com"]
[Date "2020.11.03"]
[Round "5"]
[White "IceBelka"]
[Black "lefonghua"]
[Result "1-0"]
[WhiteElo "2162"]
[BlackElo "2232"]
[TimeControl "180+1"]
[EndTime "10:59:44 PST"]
[Termination "IceBelka won by checkmate"]

1. e4 {[%clk 0:03:00.9]} 1... c5 {[%clk 0:02:58.5]} 2. Nf3 {[%clk 0:02:59.2]}
2... g6 {[%clk 0:02:58.5]} 3. d4 {[%clk 0:02:58.6]} 3... cxd4 {[%clk 0:02:59.4]}
4. Nxd4 {[%clk 0:02:58.7]} 4... Bg7 {[%clk 0:02:59.7]} 5. Nc3 {[%clk 0:02:54.2]}
5... Nc6 {[%clk 0:02:59.9]} 6. Be3 {[%clk 0:02:52]} 6... Nf6 {[%clk 0:03:00]} 7.
Bc4 {[%clk 0:02:51.6]} 7... Qa5 {[%clk 0:03:00.1]} 8. O-O {[%clk 0:02:50]} 8...
O-O {[%clk 0:02:59.1]} 9. h3 {[%clk 0:02:48.7]} 9... d6 {[%clk 0:02:42.8]} 10.
Re1 {[%clk 0:02:45.5]} 10... Bd7 {[%clk 0:02:41.2]} 11. Bb3 {[%clk 0:02:39.7]}
11... Rfc8 {[%clk 0:02:38.3]} 12. Nf3 {[%clk 0:02:37.5]} 12... b5 {[%clk
0:02:29.7]} 13. a3 {[%clk 0:02:29.2]} 13... Rab8 {[%clk 0:02:27.2]} 14. Qd2
{[%clk 0:02:26.8]} 14... Qd8 {[%clk 0:02:19.6]} 15. Rad1 {[%clk 0:02:09]} 15...
a5 {[%clk 0:02:14.3]} 16. Bh6 {[%clk 0:01:31.5]} 16... a4 {[%clk 0:02:00]} 17.
Bxg7 {[%clk 0:01:23.6]} 17... Kxg7 {[%clk 0:01:59.5]} 18. Ba2 {[%clk 0:01:22.7]}
18... b4 {[%clk 0:01:55.7]} 19. Nd5 {[%clk 0:01:16.9]} 19... b3 {[%clk
0:01:28.6]} 20. cxb3 {[%clk 0:01:16.1]} 20... axb3 {[%clk 0:01:28.6]} 21. Bb1
{[%clk 0:01:16]} 21... Ne8 {[%clk 0:00:58.8]} 22. Qf4 {[%clk 0:01:02.2]} 22...
e6 {[%clk 0:00:54]} 23. Nc3 {[%clk 0:00:59.6]} 23... Qf6 {[%clk 0:00:51.7]} 24.
Qe3 {[%clk 0:00:57.4]} 24... Qe7 {[%clk 0:00:46]} 25. h4 {[%clk 0:00:55.3]}
25... h5 {[%clk 0:00:45.9]} 26. e5 {[%clk 0:00:53]} 26... d5 {[%clk 0:00:39.1]}
27. Qf4 {[%clk 0:00:37.9]} 27... Na5 {[%clk 0:00:37.7]} 28. g4 {[%clk 0:00:28]}
28... Rc4 {[%clk 0:00:37.6]} 29. Rd4 {[%clk 0:00:27]} 29... Rxd4 {[%clk
0:00:37.3]} 30. Qxd4 {[%clk 0:00:23.2]} 30... hxg4 {[%clk 0:00:30.1]} 31. Qxg4
{[%clk 0:00:24.1]} 31... Nc7 {[%clk 0:00:22.1]} 32. h5 {[%clk 0:00:24]} 32...
Be8 {[%clk 0:00:22.6]} 33. hxg6 {[%clk 0:00:23.6]} 33... fxg6 {[%clk 0:00:23.5]}
34. Kg2 {[%clk 0:00:23]} 34... Bf7 {[%clk 0:00:23.2]} 35. Rh1 {[%clk 0:00:22.7]}
35... Rh8 {[%clk 0:00:23.7]} 36. Rxh8 {[%clk 0:00:21.9]} 36... Kxh8 {[%clk
0:00:24.6]} 37. Ng5 {[%clk 0:00:22.2]} 37... Kg7 {[%clk 0:00:21.5]} 38. Ne2
{[%clk 0:00:19.3]} 38... Nc4 {[%clk 0:00:20]} 39. Qg3 {[%clk 0:00:14.3]} 39...
Nb5 {[%clk 0:00:18.4]} 40. Nf4 {[%clk 0:00:13]} 40... Nd4 {[%clk 0:00:16]} 41.
Nxf7 {[%clk 0:00:10.8]} 41... Qxf7 {[%clk 0:00:15.6]} 42. Bxg6 {[%clk
0:00:10.6]} 42... Qe7 {[%clk 0:00:12.5]} 43. Bd3+ {[%clk 0:00:10.1]} 43... Kf8
{[%clk 0:00:10]} 44. Ng6+ {[%clk 0:00:09.7]} 44... Ke8 {[%clk 0:00:10.7]} 45.
Nxe7 {[%clk 0:00:10.6]} 45... Kxe7 {[%clk 0:00:11.6]} 46. Qg7+ {[%clk
0:00:10.8]} 46... Kd8 {[%clk 0:00:11.7]} 47. Qg8+ {[%clk 0:00:10.2]} 47... Kd7
{[%clk 0:00:11.9]} 48. Bxc4 {[%clk 0:00:11.1]} 48... dxc4 {[%clk 0:00:12.1]} 49.
Qf7+ {[%clk 0:00:11.3]} 49... Kc6 {[%clk 0:00:12.1]} 50. Qe8+ {[%clk 0:00:11]}
50... Kd5 {[%clk 0:00:12.1]} 51. Qd7+ {[%clk 0:00:11.1]} 51... Kxe5 {[%clk
0:00:12.5]} 52. Qc7+ {[%clk 0:00:10.4]} 52... Kd5 {[%clk 0:00:13]} 53. a4 {[%clk
0:00:09.5]} 53... Nc6 {[%clk 0:00:10.9]} 54. a5 {[%clk 0:00:08.1]} 54... c3
{[%clk 0:00:10.9]} 55. bxc3 {[%clk 0:00:07.9]} 55... b2 {[%clk 0:00:11.5]} 56.
Qb6 {[%clk 0:00:08]} 56... Ne5 {[%clk 0:00:11.2]} 57. Qxb2 {[%clk 0:00:06.6]}
57... Nc4 {[%clk 0:00:12.1]} 58. Qb5+ {[%clk 0:00:06.6]} 58... Ke4 {[%clk
0:00:11]} 59. Qxc4+ {[%clk 0:00:07.5]} 59... Kf5 {[%clk 0:00:10.9]} 60. a6
{[%clk 0:00:07.9]} 60... e5 {[%clk 0:00:11.8]} 61. a7 {[%clk 0:00:08.3]} 61...
Kg5 {[%clk 0:00:12.7]} 62. a8=Q {[%clk 0:00:08.3]} 62... e4 {[%clk 0:00:13.6]}
63. Qaxe4 {[%clk 0:00:08.1]} 63... Kh5 {[%clk 0:00:14.5]} 64. Qed5+ {[%clk
0:00:08.5]} 64... Kg6 {[%clk 0:00:14.8]} 65. Qcc6+ {[%clk 0:00:09.4]} 65... Kg7
{[%clk 0:00:15.2]} 66. Qdd7+ {[%clk 0:00:10.3]} 66... Kf8 {[%clk 0:00:16.1]} 67.
Qcc8# {[%clk 0:00:11]} 1-0

[Event "*** Titled Tuesday Blitz"]
[Site "Chess.com"]
[Date "2020.11.03"]
[Round "5"]
[White "boasovietica"]
[Black "ChristopherYoo"]
[Result "0-1"]
[WhiteElo "2537"]
[BlackElo "2854"]
[TimeControl "180+1"]
[EndTime "10:59:46 PST"]
[Termination "ChristopherYoo won on time"]

1. e4 {[%clk 0:03:00.9]} 1... c6 {[%clk 0:02:57.1]} 2. d4 {[%clk 0:02:59.8]}
2... d5 {[%clk 0:02:57.3]} 3. exd5 {[%clk 0:03:00.7]} 3... cxd5 {[%clk 0:02:57]}
4. Bd3 {[%clk 0:03:01.3]} 4... Nc6 {[%clk 0:02:57.2]} 5. c3 {[%clk 0:03:01.6]}
5... Nf6 {[%clk 0:02:57.8]} 6. Ne2 {[%clk 0:03:01.7]} 6... g6 {[%clk 0:02:51.8]}
7. O-O {[%clk 0:03:01.4]} 7... Bg7 {[%clk 0:02:51.7]} 8. Nd2 {[%clk 0:03:00.8]}
8... O-O {[%clk 0:02:51.8]} 9. Nf3 {[%clk 0:02:54.4]} 9... Ne8 {[%clk
0:02:41.5]} 10. Bg5 {[%clk 0:02:28.5]} 10... h6 {[%clk 0:02:38.5]} 11. Bh4
{[%clk 0:02:28.4]} 11... Bg4 {[%clk 0:02:37.5]} 12. Nc1 {[%clk 0:02:19.5]} 12...
Nd6 {[%clk 0:02:26.8]} 13. h3 {[%clk 0:02:14.5]} 13... Bf5 {[%clk 0:02:26.1]}
14. Bg3 {[%clk 0:02:10.3]} 14... Bxd3 {[%clk 0:02:10.4]} 15. Nxd3 {[%clk
0:02:07.4]} 15... Ne4 {[%clk 0:02:08.4]} 16. Bh2 {[%clk 0:02:07.1]} 16... e6
{[%clk 0:02:05.5]} 17. Re1 {[%clk 0:02:06.4]} 17... Rc8 {[%clk 0:02:04.8]} 18.
Nd2 {[%clk 0:01:57.5]} 18... Nxd2 {[%clk 0:02:02.5]} 19. Qxd2 {[%clk 0:01:57.6]}
19... Na5 {[%clk 0:01:58.5]} 20. Ne5 {[%clk 0:01:46.3]} 20... Nc4 {[%clk
0:01:56.3]} 21. Nxc4 {[%clk 0:01:45.4]} 21... Rxc4 {[%clk 0:01:54.4]} 22. Be5
{[%clk 0:01:40.4]} 22... b5 {[%clk 0:01:50.6]} 23. a3 {[%clk 0:01:34.4]} 23...
Qb6 {[%clk 0:01:44.3]} 24. Re3 {[%clk 0:01:26.6]} 24... a5 {[%clk 0:01:35.8]}
25. h4 {[%clk 0:01:19.4]} 25... h5 {[%clk 0:01:20.3]} 26. Bxg7 {[%clk
0:00:58.2]} 26... Kxg7 {[%clk 0:01:21.2]} 27. Rae1 {[%clk 0:00:58]} 27... b4
{[%clk 0:01:17.9]} 28. axb4 {[%clk 0:00:58.9]} 28... axb4 {[%clk 0:01:18.3]} 29.
Rg3 {[%clk 0:00:54.8]} 29... bxc3 {[%clk 0:01:17.6]} 30. bxc3 {[%clk 0:00:55.7]}
30... Qd8 {[%clk 0:01:10.7]} 31. Qf4 {[%clk 0:00:52.5]} 31... Qf6 {[%clk
0:01:04.5]} 32. Qxf6+ {[%clk 0:00:46.4]} 32... Kxf6 {[%clk 0:01:05.4]} 33. Rf3+
{[%clk 0:00:45.9]} 33... Ke7 {[%clk 0:01:04.6]} 34. Re5 {[%clk 0:00:39.8]} 34...
Rfc8 {[%clk 0:01:02.8]} 35. Ree3 {[%clk 0:00:39.9]} 35... Ra8 {[%clk 0:00:58.6]}
36. Kh2 {[%clk 0:00:38.5]} 36... Ra2 {[%clk 0:00:57.4]} 37. Kg3 {[%clk
0:00:38.3]} 37... Rc2 {[%clk 0:00:57.2]} 38. Rd3 {[%clk 0:00:36.4]} 38... Ra4
{[%clk 0:00:53]} 39. Rd1 {[%clk 0:00:32.2]} 39... Ra3 {[%clk 0:00:51.5]} 40. Rb1
{[%clk 0:00:28.1]} 40... Raxc3 {[%clk 0:00:33.9]} 41. Rb7+ {[%clk 0:00:27.7]}
41... Rc7 {[%clk 0:00:33.8]} 42. Rxc7+ {[%clk 0:00:18]} 42... Rxc7 {[%clk
0:00:33]} 43. Ra3 {[%clk 0:00:15.7]} 43... Rc4 {[%clk 0:00:32.6]} 44. Rd3 {[%clk
0:00:15.3]} 44... f6 {[%clk 0:00:30]} 45. Kf3 {[%clk 0:00:15.2]} 45... Kd6
{[%clk 0:00:28.9]} 46. Ke3 {[%clk 0:00:15.1]} 46... e5 {[%clk 0:00:28.7]} 47.
dxe5+ {[%clk 0:00:15.3]} 47... fxe5 {[%clk 0:00:29]} 48. g3 {[%clk 0:00:15.8]}
48... Ke6 {[%clk 0:00:28.9]} 49. Ra3 {[%clk 0:00:16]} 49... Kf5 {[%clk
0:00:28.3]} 50. Ra8 {[%clk 0:00:14.7]} 50... d4+ {[%clk 0:00:20.4]} 51. Kd2
{[%clk 0:00:15.2]} 51... Kg4 {[%clk 0:00:15.2]} 52. Rg8 {[%clk 0:00:14.1]} 52...
Rc6 {[%clk 0:00:14.6]} 53. Rf8 {[%clk 0:00:13.5]} 53... Rc3 {[%clk 0:00:13]} 54.
Rg8 {[%clk 0:00:11.7]} 54... Kf3 {[%clk 0:00:10.2]} 55. Rf8+ {[%clk 0:00:10.1]}
55... Kg2 {[%clk 0:00:10.4]} 56. Re8 {[%clk 0:00:09]} 56... Kxf2 {[%clk
0:00:09.9]} 57. Rxe5 {[%clk 0:00:08.8]} 57... Rxg3 {[%clk 0:00:06.7]} 58. Re6
{[%clk 0:00:04.9]} 58... Rg4 {[%clk 0:00:06.4]} 59. Kd3 {[%clk 0:00:04.2]} 59...
Kg3 {[%clk 0:00:06.3]} 0-1

[Event "*** Titled Tuesday Blitz"]
[Site "Chess.com"]
[Date "2020.11.03"]
[Round "5"]
[White "Sviridov_Valery"]
[Black "IMJonathanCarlstedt"]
[Result "1-0"]
[WhiteElo "2720"]
[BlackElo "2517"]
[TimeControl "180+1"]
[EndTime "10:59:46 PST"]
[Termination "Sviridov_Valery won on time"]

1. Nf3 {[%clk 0:03:00.6]} 1... d6 {[%clk 0:02:58.9]} 2. g3 {[%clk 0:03:00.8]}
2... e5 {[%clk 0:02:58.2]} 3. Bg2 {[%clk 0:03:01.1]} 3... f5 {[%clk 0:02:58.3]}
4. O-O {[%clk 0:03:01.4]} 4... Nf6 {[%clk 0:02:58.4]} 5. c4 {[%clk 0:03:01.5]}
5... Be7 {[%clk 0:02:58.1]} 6. Nc3 {[%clk 0:03:02.1]} 6... O-O {[%clk
0:02:57.6]} 7. c5 {[%clk 0:02:50.7]} 7... e4 {[%clk 0:02:54]} 8. cxd6 {[%clk
0:02:50.6]} 8... cxd6 {[%clk 0:02:53]} 9. Nd4 {[%clk 0:02:50.4]} 9... Nc6 {[%clk
0:02:52.3]} 10. Nxc6 {[%clk 0:02:39.9]} 10... bxc6 {[%clk 0:02:53.2]} 11. d3
{[%clk 0:02:40.1]} 11... d5 {[%clk 0:02:51.9]} 12. Na4 {[%clk 0:02:36.2]} 12...
Be6 {[%clk 0:02:44.4]} 13. Be3 {[%clk 0:02:34.5]} 13... d4 {[%clk 0:02:39.1]}
14. Bg5 {[%clk 0:02:34.6]} 14... e3 {[%clk 0:02:17.6]} 15. Bxf6 {[%clk 0:02:20]}
15... Bxf6 {[%clk 0:02:14]} 16. Bxc6 {[%clk 0:02:17.4]} 16... Rc8 {[%clk
0:02:12.6]} 17. Bf3 {[%clk 0:02:18]} 17... f4 {[%clk 0:02:07.8]} 18. Rc1 {[%clk
0:02:05.1]} 18... Qd6 {[%clk 0:02:06.7]} 19. Rxc8 {[%clk 0:01:31.2]} 19... Rxc8
{[%clk 0:02:06.1]} 20. b3 {[%clk 0:01:32.1]} 20... exf2+ {[%clk 0:02:02.6]} 21.
Kxf2 {[%clk 0:01:28.1]} 21... fxg3+ {[%clk 0:01:53.2]} 22. hxg3 {[%clk 0:01:29]}
22... Bg5 {[%clk 0:01:51.3]} 23. Kg2 {[%clk 0:01:28.3]} 23... g6 {[%clk
0:01:14.8]} 24. Qe1 {[%clk 0:01:20.6]} 24... h5 {[%clk 0:01:12.4]} 25. Qa5
{[%clk 0:01:19.9]} 25... Bd8 {[%clk 0:01:05.2]} 26. Qe1 {[%clk 0:00:44.9]} 26...
Bc7 {[%clk 0:01:03.3]} 27. Be4 {[%clk 0:00:41.7]} 27... Kg7 {[%clk 0:00:57]} 28.
Qf2 {[%clk 0:00:41.1]} 28... Qe5 {[%clk 0:00:46.2]} 29. Nc5 {[%clk 0:00:40.6]}
29... Bg8 {[%clk 0:00:26.9]} 30. Nd7 {[%clk 0:00:38.7]} 30... Qg5 {[%clk
0:00:25.7]} 31. Qf6+ {[%clk 0:00:31.7]} 31... Qxf6 {[%clk 0:00:25.4]} 32. Nxf6
{[%clk 0:00:32.6]} 32... Bd6 {[%clk 0:00:18.4]} 33. Nxg8 {[%clk 0:00:32.5]}
33... Rxg8 {[%clk 0:00:16.9]} 34. Rc1 {[%clk 0:00:31.6]} 34... Rf8 {[%clk
0:00:16.1]} 35. Rc6 {[%clk 0:00:31]} 35... Rf6 {[%clk 0:00:13.1]} 36. Rc4 {[%clk
0:00:31]} 36... Be5 {[%clk 0:00:12.9]} 37. b4 {[%clk 0:00:31.4]} 37... Ra6
{[%clk 0:00:11.9]} 38. Rc5 {[%clk 0:00:30.5]} 38... Kf6 {[%clk 0:00:11.9]} 39.
a4 {[%clk 0:00:28.2]} 39... Rxa4 {[%clk 0:00:11.8]} 40. Rc6+ {[%clk 0:00:28.4]}
40... Ke7 {[%clk 0:00:12.2]} 41. b5 {[%clk 0:00:27]} 41... Rb4 {[%clk
0:00:12.4]} 42. Rxg6 {[%clk 0:00:19.2]} 42... Rxb5 {[%clk 0:00:12]} 43. Rg5
{[%clk 0:00:19.8]} 43... a5 {[%clk 0:00:11]} 44. Rxh5 {[%clk 0:00:20.1]} 44...
Kd6 {[%clk 0:00:09.3]} 45. Rh6+ {[%clk 0:00:20.2]} 45... Kc5 {[%clk 0:00:07.9]}
46. Re6 {[%clk 0:00:18.6]} 46... Kb4 {[%clk 0:00:07.5]} 47. Ra6 {[%clk 0:00:16]}
47... a4 {[%clk 0:00:07.2]} 48. Bc6 {[%clk 0:00:15.9]} 48... Ra5 {[%clk
0:00:05.7]} 49. Rb6+ {[%clk 0:00:09.3]} 49... Kc3 {[%clk 0:00:04.9]} 50. Rb5
{[%clk 0:00:04.8]} 1-0